bitfinex/quotes_ETHUSD_20250115
["timestamp","ask_amount","ask_price","bid_price","bid_amount"]
[1736954847033,0.55,3344.9,3344.3,9.1]
[1736954847914,0.59229317,3345.2,3344.4,0.3398]
[1736954848511,0.55,3344.9,3344.4,0.3398]
[1736954848828,3.0,3345.1,3344.4,0.3398]
[1736954849128,3.59229317,3345.2,3344.4,0.3398]
[1736954849354,0.55,3345.1,3344.4,0.3398]
[1736954850349,3.30171396,3345.6,3344.4,0.3398]
[1736954850515,2.98803,3346.7,3344.4,0.3398]
[1736954850516,0.61179653,3345.8,3344.5,0.3398]
[1736954850716,0.61179653,3345.8,3344.8,9.2098]
[1736954851045,0.55,3345.7,3344.9,8.87]
[1736954851252,0.61179653,3345.8,3344.9,8.87]
[1736954851925,0.55,3345.7,3344.9,8.87]
[1736954852326,0.55,3345.8,3344.9,8.87]
[1736954853334,0.55,3345.7,3344.9,8.87]
[1736954853841,0.55,3346.1,3344.9,8.87]
[1736954854015,3.55,3345.9,3344.9,8.87]
[1736954854222,6.53878,3345.9,3344.9,8.87]
[1736954854536,0.55,3345.9,3345.0,0.3398]
[1736954854745,0.55,3345.9,3345.0,9.2098]
[1736954856739,3.53856,3346.1,3345.1,8.87]
[1736954857162,2.98839,3346.3,3345.2,0.3398]
[1736954857327,3.0,3346.2,3345.2,0.3398]
[1736954857520,0.55,3346.1,3345.2,9.2098]
[1736954857717,0.55,3346.1,3345.2,12.19913]
[1736954858820,0.55,3346.1,3345.2,9.2098]
[1736954859557,0.55,3345.8,3345.2,0.3398]
[1736954859757,0.59731951,3346.4,3345.2,0.3398]
[1736954859758,3.55,3346.0,3345.2,0.3398]
[1736954860360,0.55,3346.2,3345.2,0.3398]
[1736954860600,0.55,3346.2,3345.2,3.32915]
[1736954861461,0.55,3346.3,3345.3,0.3398]
[1736954861665,0.55,3346.3,3345.5,0.3398]
[1736954861955,0.59731951,3346.4,3345.5,12.19888]
[1736954862157,0.59731951,3346.4,3345.5,47.19888]
[1736954862528,0.59731951,3346.4,3345.5,9.2098]
[1736954862858,3.0,3346.3,3345.6,0.229]
[1736954863024,0.55,3346.3,3345.6,0.229]
[1736954863361,0.59731951,3346.4,3345.7,0.3398]
[1736954863965,0.55,3346.3,3345.7,0.3398]
[1736954864162,2.98775,3347.0,3345.7,0.3398]
[1736954864163,0.00836586,3349.0,3346.1,14.94275]
[1736954864383,0.61007719,3349.3,3347.1,3.23757]
[1736954864593,5.90523735,3350.1,3347.9,0.25]
[1736954864798,0.752,3350.1,3348.2,0.60235772]
[1736954865075,2.98472,3350.4,3348.6,0.25]
[1736954865287,3.1550639,3350.6,3349.3,3.0]
[1736954865442,3.1550639,3350.6,3349.3,2.98568]
[1736954865779,0.1704739,3350.6,3349.2,0.25]
[1736954866089,0.1704739,3350.6,3349.4,35.0]
[1736954866239,2.98463,3350.5,3349.4,35.0]
[1736954866582,2.98481,3350.3,3349.4,0.229]
[1736954866743,0.1704739,3350.6,3349.4,0.229]
[1736954866939,0.1704739,3350.6,3349.8,2.9852]
[1736954867339,0.1704739,3350.6,3349.5,35.0]
[1736954867340,0.1704739,3350.6,3349.9,0.229]
[1736954868280,0.1704739,3350.6,3350.3,2.98476]
[1736954868640,0.1704739,3350.6,3350.4,2.9847]
[1736954869653,0.1704739,3350.6,3350.5,2.98462]
[1736954870362,0.1704739,3350.6,3350.5,5.95919054]
[1736954871455,1.645496,3352.0,3351.3,2.98387]
[1736954871677,1.645496,3352.0,3351.4,3.21281]
[1736954871916,1.645496,3352.0,3351.5,0.229]
[1736954872068,1.645496,3352.0,3351.6,0.229]
[1736954872401,1.645496,3352.0,3351.8,2.98346]
[1736954872558,1.645496,3352.0,3351.9,0.229]
[1736954872761,1.645496,3352.0,3351.9,3.21238]
[1736954873071,1.645496,3352.0,3351.9,35.229]
[1736954873990,1.645496,3352.0,3351.9,38.21238]
[1736954874356,1.645496,3352.0,3351.9,3.21238]
[1736954874557,0.014,3352.1,3351.9,3.21238]
[1736954874798,0.014,3352.1,3352.0,37.98329]
[1736954875154,0.014,3352.1,3352.0,38.21229]
[1736954875559,0.014,3352.1,3352.0,0.229]
[1736954877454,0.014,3352.1,3352.0,2.86361272]
[1736954877692,0.014,3352.1,3352.0,3.09261272]
[1736954878057,0.014,3352.1,3352.0,2.86361272]
[1736954878256,0.014,3352.1,3352.0,3.09261272]
[1736954878569,0.014,3352.1,3352.0,2.86361272]
[1736954878775,0.014,3352.1,3352.0,3.09261272]
[1736954880474,3.50497193,3352.1,3351.5,2.97368301]
[1736954880801,0.90049719,3352.0,3351.5,3.20268301]
[1736954880971,0.7787,3351.9,3351.5,2.97368301]
[1736954881177,0.55,3352.0,3351.5,2.97368301]
[1736954881566,0.55,3352.0,3351.3,2.98389]
[1736954881768,0.55,3352.0,3351.1,0.229]
[1736954881991,0.55,3352.0,3351.3,2.98386]
[1736954882192,3.49097193,3351.7,3350.7,0.119507]
[1736954882400,3.49097193,3351.7,3350.8,0.229]
[1736954882707,0.40549719,3351.9,3350.4,1.195122]
[1736954882865,0.55,3352.0,3351.1,2.98403]
[1736954883202,0.55,3352.0,3350.9,0.229]
[1736954883899,0.55,3352.0,3351.0,0.229]
[1736954884500,3.50497193,3352.1,3351.0,0.229]
[1736954884501,0.55,3351.8,3351.0,3.21315]
[1736954884702,0.55,3352.0,3351.0,3.21315]
[1736954884904,0.55,3352.0,3351.0,0.229]
[1736954884905,1.25381919,3352.0,3351.0,0.229]
[1736954885081,4.04097193,3351.7,3351.0,0.229]
[1736954885409,3.53375,3351.5,3351.1,0.229]
[1736954885704,0.8183,3351.6,3350.9,0.229]
[1736954885705,7.02489193,3351.3,3350.9,0.229]
[1736954885905,7.02489193,3351.3,3350.1,2.9849]
[1736954885906,0.55,3351.1,3350.4,35.0]
[1736954886075,4.04097193,3350.8,3350.5,0.229]
[1736954886275,4.04097193,3350.8,3350.2,0.60188462]
[1736954886504,3.8028,3350.7,3349.9,1.42428]
[1736954886704,3.49097193,3350.3,3349.9,1.42428]
[1736954887013,0.55,3350.6,3349.9,0.229]
[1736954887179,0.55,3350.4,3349.9,0.229]
[1736954887507,0.55,3350.2,3349.2,35.0]
[1736954887711,0.8183,3350.1,3349.2,35.0]
[1736954888032,0.8183,3350.1,3349.1,0.60266116]
[1736954888033,0.55,3349.2,3348.2,2.98663]
[1736954888168,0.55,3349.2,3348.3,0.229]
[1736954888364,6.47632193,3349.7,3348.5,2.98641]
[1736954888611,6.47632193,3349.7,3348.4,35.0]
[1736954888612,0.64763219,3349.7,3348.6,0.229]
[1736954888914,0.55,3349.2,3348.6,0.229]
[1736954889126,3.53586,3349.2,3348.6,0.229]
[1736954889424,0.55,3348.8,3347.1,2.98758]
[1736954889711,3.49097193,3348.8,3346.8,2.98792]
[1736954889879,3.49097193,3348.8,3347.9,2.98693]
[1736954890080,0.55,3348.7,3347.2,0.229]
[1736954890306,2.98596,3349.1,3347.8,2.98701]
[1736954890474,6.47711193,3348.8,3347.7,0.59585143]
[1736954890809,0.55,3348.5,3347.7,0.59585143]
[1736954891004,0.55,3348.4,3347.3,2.98747]
[1736954891176,2.98612,3348.9,3347.3,2.98747]
[1736954891177,0.55,3347.5,3347.3,0.229]
[1736954891592,0.55,3347.5,3346.8,0.229]
[1736954891792,3.49097193,3347.6,3346.8,0.229]
[1736954891993,0.8183,3348.2,3346.8,0.229]
[1736954891994,3.49097193,3348.0,3346.8,0.229]
[1736954892385,0.8183,3348.2,3347.1,2.98758]
[1736954892581,3.49097193,3348.0,3346.9,2.98782]
[1736954892781,0.55,3347.9,3346.8,0.229]
[1736954893114,3.53697,3347.9,3346.8,3.21684]
[1736954893409,0.55,3347.7,3346.8,0.229]
[1736954894217,0.55,3347.7,3346.8,3.21684]
[1736954894451,3.53713,3347.7,3346.6,2.98809]
[1736954894601,0.8183,3348.2,3346.1,5.13848]
[1736954894942,0.8245,3348.7,3346.8,2.98792]
[1736954895166,0.8245,3348.7,3347.0,2.98775]
[1736954895462,2.98649,3348.5,3346.6,9.12]
[1736954895602,2.98649,3348.5,3347.4,0.59284245]
[1736954895802,2.98653,3348.4,3347.4,0.59284245]
[1736954896004,0.55,3348.3,3347.1,0.229]
[1736954896203,2.98675,3348.2,3347.1,0.229]
[1736954896517,0.55,3348.1,3347.1,3.21657]
[1736954896853,3.53677,3348.1,3347.1,0.229]
[1736954897443,7.30179193,3348.7,3347.1,0.82202189]
[1736954897641,0.8245,3348.7,3347.2,2.98756]
[1736954897945,0.8245,3348.7,3347.7,2.98711]
[1736954898098,0.8245,3348.7,3347.8,2.98702]
[1736954898303,0.8245,3348.7,3347.9,2.98694]
[1736954898511,0.8245,3348.7,3347.1,0.82202189]
[1736954898512,0.8245,3348.7,3348.0,2.98676]
[1736954898837,0.55,3348.6,3347.7,2.98703]
[1736954899843,0.8245,3348.7,3347.3,2.98742]
[1736954900012,0.8245,3348.7,3348.0,2.98682]
[1736954900213,0.8245,3348.7,3348.1,2.98673]
[1736954900440,0.8245,3348.7,3348.2,0.228]
[1736954901243,0.55,3349.0,3348.2,3.21467]
[1736954901447,0.8245,3349.1,3348.2,3.21467]
[1736954901658,0.8245,3349.1,3348.4,2.98649]
[1736954902041,0.8245,3349.1,3348.2,0.228]
[1736954902236,0.8245,3349.1,3348.5,2.9864]
[1736954902567,2.98552,3349.5,3348.2,0.228]
[1736954902568,0.8245,3349.5,3348.2,0.228]
[1736954902938,0.8245,3349.5,3348.5,2.98641]
[1736954903122,0.8245,3349.5,3348.6,2.98628]
[1736954903325,3.81008,3349.5,3348.5,2.9864]
[1736954903670,0.8245,3349.5,3348.7,0.228]
[1736954903977,0.8245,3349.5,3348.8,0.228]
[1736954904125,0.8245,3349.5,3348.9,3.21399]
[1736954904765,1.3745,3349.9,3348.9,3.21399]
[1736954905370,0.8245,3349.9,3349.1,2.98587]
[1736954905717,0.8245,3349.9,3348.9,0.228]
[1736954905917,0.8245,3349.9,3349.0,2.98591]
[1736954906361,0.8245,3349.9,3348.9,0.228]
[1736954906562,3.80968,3349.9,3348.9,3.214]
[1736954907365,2.98544,3349.6,3348.9,0.228]
[1736954907663,0.8245,3350.4,3349.4,2.98555]
[1736954907871,0.8245,3350.4,3349.5,2.98549]
[1736954908184,0.8245,3350.4,3349.7,2.98525]
[1736954909065,0.8245,3350.4,3349.7,2.98526]
[1736954909450,0.8245,3350.4,3349.3,2.98562]
[1736954909451,0.8245,3350.4,3349.8,2.98522]
[1736954909820,0.8245,3350.7,3349.8,2.98522]
[1736954910021,3.80897,3350.7,3349.1,3.55]
[1736954910371,3.80897,3350.7,3349.7,2.9853]
[1736954910575,1.205397,3350.7,3349.6,3.0]
[1736954910729,2.98483,3350.3,3349.7,0.228]
[1736954910925,2.98483,3350.3,3349.8,0.228]
[1736954911177,2.98462,3350.5,3349.8,0.228]
[1736954911466,2.98497,3350.2,3349.8,0.228]
[1736954911671,0.8245,3350.4,3349.8,0.228]
[1736954912372,3.80922,3350.4,3349.8,0.228]
[1736954912720,0.8245,3350.4,3349.8,0.228]
[1736954912926,0.8245,3350.4,3349.9,0.228]
[1736954914783,0.8245,3350.4,3348.2,2.0]
[1736954914784,0.55,3350.3,3348.2,2.0]
[1736954914930,0.8251,3350.0,3348.5,0.59110003]
[1736954915251,0.8251,3350.0,3349.1,2.98583]
[1736954915454,0.8251,3350.0,3348.8,3.0]
[1736954915455,0.8251,3350.0,3349.2,2.98575]
[1736954916735,0.8251,3350.5,3349.5,2.98548]
[1736954916937,3.80973,3350.5,3349.6,0.228]
[1736954918486,0.8251,3350.5,3349.7,2.98531]
[1736954918996,0.8251,3351.1,3349.6,3.21336]
[1736954919286,0.8251,3350.6,3349.3,2.98568]
[1736954919492,0.8251,3350.6,3349.7,2.98531]
[1736954919687,0.8251,3350.6,3349.8,2.98524]
[1736954920145,0.8251,3350.6,3349.4,0.8383111]
[1736954920345,0.8251,3351.0,3350.2,2.98489]
[1736954920548,0.8251,3351.0,3350.0,2.98504]
[1736954921184,0.8251,3351.0,3350.5,2.98462]
[1736954921465,0.8251,3351.0,3350.6,0.228]
[1736954921663,3.8093,3351.0,3350.7,0.228]
[1736954922161,1.26439904,3351.0,3349.7,2.98532]
[1736954922383,0.8251,3350.6,3349.8,0.228]
[1736954922649,0.8251,3350.6,3350.0,0.4]
[1736954922961,3.80964,3350.6,3350.0,0.4]
[1736954923164,0.8251,3350.6,3350.0,0.4]
[1736954923471,0.8251,3350.6,3350.1,0.228]
[1736954923676,2.98498,3350.1,3350.0,0.4]
[1736954923878,4.407049,3350.1,3350.0,0.4]
[1736954924074,1.422069,3350.1,3350.0,0.4]
[1736954924277,0.8251,3350.1,3350.0,0.4]
[1736954924594,0.8251,3350.4,3350.0,0.628]
[1736954925395,0.8251,3351.2,3350.0,0.628]
[1736954925752,2.98422,3351.0,3350.0,3.61307]
[1736954926090,2.98426,3351.0,3350.0,3.61303]
[1736954926296,0.8251,3351.2,3350.0,0.628]
[1736954926501,0.8251,3351.2,3350.4,2.98464]
[1736954926649,0.8251,3351.2,3350.0,0.628]
[1736954927009,0.8251,3351.2,3350.4,2.98467]
[1736954927493,0.8251,3351.2,3350.0,0.628]
[1736954927696,0.8251,3351.2,3350.6,2.9845]
[1736954928163,0.8251,3351.2,3350.4,2.9847]
[1736954928509,0.8251,3351.2,3350.6,2.98449]
[1736954928794,0.8251,3351.2,3350.0,0.628]
[1736954928953,0.8251,3351.2,3350.4,2.98471]
[1736954929152,0.8251,3351.2,3350.5,2.98461]
[1736954929364,0.8251,3351.2,3350.3,2.98477]
[1736954929589,0.8251,3351.2,3350.1,2.98498]
[1736954929800,0.8251,3351.2,3350.0,3.61302]
[1736954929956,0.8251,3351.2,3350.3,2.98473]
[1736954930305,0.8251,3351.2,3350.4,2.98468]
[1736954930903,0.8251,3351.2,3350.4,2.98462]
[1736954932420,0.7626,3351.6,3351.0,2.98409]
[1736954932620,0.7626,3351.6,3351.1,0.228]
[1736954932818,0.7626,3351.6,3350.5,2.98456]
[1736954933118,0.7626,3351.6,3350.6,0.228]
[1736954933289,0.7626,3351.6,3350.8,3.0]
[1736954933618,0.7626,3352.0,3351.1,2.98402]
[1736954933820,0.7626,3352.0,3351.2,2.984]
[1736954933996,0.7126,3352.0,3351.2,2.984]
[1736954934179,0.7126,3352.0,3351.1,3.0]
[1736954934384,0.7126,3352.0,3350.9,0.0501]
[1736954934583,0.7126,3352.0,3351.0,2.98418]
[1736954934914,0.014,3352.1,3351.5,2.98365]
[1736954936322,0.014,3352.1,3351.8,2.98339]
[1736954936530,0.014,3352.1,3351.9,0.228]
[1736954936826,0.014,3352.1,3352.0,0.228]
[1736954937832,3.55,3353.0,3352.0,0.228]
[1736954937999,2.98278,3352.6,3352.0,0.228]
[1736954938516,0.60048079,3352.9,3352.3,2.98301]
[1736954938689,2.98221,3353.3,3352.3,2.98301]
[1736954938884,3.49233672,3353.5,3352.1,0.7917]
[1736954939185,2.98222,3353.2,3352.2,2.98308]
[1736954939405,2.98239,3353.1,3352.0,3.21128]
[1736954939583,2.98246,3353.0,3352.0,0.228]
[1736954939779,2.98261,3352.8,3352.1,0.228]
[1736954940023,0.55,3353.1,3352.1,0.228]
[1736954940234,2.98267,3352.7,3352.1,0.228]
[1736954940635,2.98252,3352.9,3352.1,0.228]
[1736954940855,0.7626,3352.9,3352.1,0.228]
[1736954941546,0.7626,3352.9,3352.3,2.98301]
[1736954941750,7.21431667,3352.5,3352.3,2.98301]
[1736954942091,7.21431667,3352.5,3352.4,2.98293]
[1736954942623,0.7646,3353.4,3352.4,0.228]
[1736954942823,0.7646,3353.4,3352.6,2.98274]
[1736954943203,0.7646,3353.4,3352.4,3.21089]
[1736954943400,0.7646,3353.4,3352.4,0.228]
[1736954943619,0.7646,3353.4,3352.6,2.98273]
[1736954943840,0.7646,3353.4,3352.4,0.228]
[1736954943841,0.7646,3353.4,3352.7,2.98259]
[1736954944193,0.7646,3353.4,3352.9,2.98246]
[1736954944514,0.7646,3353.4,3353.0,0.228]
[1736954944692,0.7646,3353.4,3352.6,2.98273]
[1736954944894,0.55,3353.0,3352.7,0.228]
[1736954945093,2.98232,3353.1,3352.7,0.228]
[1736954945335,2.98241,3353.0,3352.7,0.228]
[1736954945534,4.28608,3353.1,3352.8,0.228]
[1736954945838,1.3037,3353.1,3352.1,2.98315]
[1736954945988,4.28606,3353.1,3352.2,0.228]
[1736954946194,0.7537,3353.1,3352.4,2.98293]
[1736954946440,0.7537,3353.1,3352.2,0.228]
[1736954946647,0.7537,3353.1,3352.3,2.98294]
[1736954946806,3.002,3353.4,3352.2,0.228]
[1736954947146,3.002,3353.4,3352.6,2.98274]
[1736954947691,3.002,3353.4,3352.7,2.98265]
[1736954948136,0.002,3353.4,3352.7,2.98265]
[1736954948525,0.002,3353.4,3352.6,0.797]
[1736954948894,2.98407,3353.4,3352.2,1.025]
[1736954949091,0.55,3353.3,3352.2,1.025]
[1736954949340,3.53213,3353.3,3352.4,2.98293]
[1736954949691,3.53411,3353.4,3352.5,0.228]
[1736954949893,0.552,3353.4,3352.5,0.228]
[1736954950408,2.98213,3353.3,3352.6,0.228]
[1736954950749,0.7537,3353.2,3352.7,0.228]
[1736954951010,0.7537,3353.2,3352.8,0.228]
[1736954951211,0.7537,3353.2,3352.9,0.228]
[1736954951706,2.9824,3353.0,3352.0,2.98328]
[1736954952015,2.98252,3352.9,3352.1,0.228]
[1736954952679,2.98252,3352.9,3352.2,0.228]
[1736954953359,3.53238,3353.1,3352.2,0.228]
[1736954953713,0.55,3353.0,3352.2,0.228]
[1736954954004,1.36100557,3352.9,3351.7,2.98355]
[1736954954215,0.55,3352.8,3351.5,3.78065]
[1736954954499,0.55,3352.8,3351.6,3.21162]
[1736954954662,2.9827,3352.7,3351.6,3.21162]
[1736954954862,2.98278,3352.6,3351.6,3.21162]
[1736954955403,2.98278,3352.6,3351.7,0.228]
[1736954955609,2.98291,3352.5,3351.7,0.228]
[1736954956108,0.78762456,3352.7,3351.7,0.228]
[1736954956304,2.98268,3352.7,3351.7,3.21147]
[1736954956510,0.55,3352.8,3351.7,0.228]
[1736954956669,1.36100557,3352.9,3352.2,2.98309]
[1736954957194,1.36100557,3352.9,3352.2,2.98305]
[1736954957397,1.36100557,3352.9,3352.3,2.98298]
[1736954957593,2.98215,3353.3,3351.7,0.228]
[1736954957594,0.7537,3353.3,3352.0,0.797]
[1736954957777,0.7537,3353.3,3352.3,2.98298]
[1736954958105,0.7537,3353.3,3352.0,0.797]
[1736954958306,0.7537,3353.3,3352.8,2.98256]
[1736954958509,0.7537,3353.3,3352.9,0.228]
[1736954958665,0.002,3353.4,3353.0,0.228]
[1736954958863,0.002,3353.4,3353.3,2.98213]
[1736954959881,0.002,3353.4,3353.3,4.00713]
[1736954960080,1e-05,3353.4,3353.3,7.00713]
[1736954960280,1e-05,3353.4,3353.3,6.92483]
[1736954960484,1e-05,3353.4,3353.3,5.89983]
[1736954960708,1e-05,3353.4,3353.3,3.73681373]
[1736954960937,1e-05,3353.4,3353.3,3.92483]
[1736954961070,1e-05,3353.4,3353.0,0.228]
[1736954961395,1e-05,3353.4,3352.9,0.797]
[1736954961714,1e-05,3353.4,3352.1,3.0]
[1736954961715,0.7537,3353.3,3352.0,0.228]
[1736954961875,0.7537,3353.3,3352.5,3.77981]
[1736954962075,0.7537,3353.3,3352.5,0.797]
[1736954962271,1e-05,3353.4,3352.5,0.797]
[1736954962505,1e-05,3353.4,3353.2,2.98222]
[1736954962714,1e-05,3353.4,3353.3,1.025]
[1736954964797,1e-05,3353.4,3353.3,0.797]
[1736954965008,1e-05,3353.4,3353.2,0.228]
[1736954965907,1e-05,3353.4,3353.0,0.797]
[1736954966229,1e-05,3353.4,3353.1,0.228]
[1736954966802,1e-05,3353.4,3352.6,0.797]
[1736954967003,1e-05,3353.4,3352.7,0.228]
[1736954967744,1e-05,3353.4,3352.7,3.21066]
[1736954967922,1e-05,3353.4,3352.7,0.228]
[1736954968130,1e-05,3353.4,3352.6,1.38953864]
[1736954968314,1e-05,3353.4,3352.7,0.228]
[1736954968514,1e-05,3353.4,3352.7,3.21063]
[1736954968746,1e-05,3353.4,3352.7,0.228]
[1736954968911,1e-05,3353.4,3353.2,0.59618007]
[1736954969115,1e-05,3353.4,3353.3,3.77913]
[1736954969426,1e-05,3353.4,3353.3,12.64913]
[1736954969614,1e-05,3353.4,3353.3,53.63313]
[1736954970749,0.00363427,3354.8,3354.4,4.98112]
[1736954971068,0.00363427,3354.8,3354.7,6.77789]
[1736954971433,0.00363427,3354.8,3354.7,7.00589]
[1736954971637,0.00363427,3354.8,3354.7,42.00589]
[1736954972100,0.00363427,3354.8,3354.7,36.025]
[1736954972304,0.00363427,3354.8,3354.7,39.00589]
[1736954973049,0.00363427,3354.8,3354.7,44.00589]
[1736954973204,4.27e-06,3354.8,3354.7,44.00589]
[1736954973605,0.03816078,3355.9,3355.1,3.77753]
[1736954973903,2.6e-06,3355.2,3355.1,11.75953]
[1736954974132,2.6e-06,3355.2,3355.1,6.75953]
[1736954974338,2.6e-06,3355.2,3355.1,4.00453]
[1736954974712,2.6e-06,3355.2,3354.7,0.8105]
[1736954974910,2.6e-06,3355.2,3354.8,3.20775]
[1736954975352,0.55,3355.0,3353.8,0.8105]
[1736954975647,0.5,3355.0,3353.9,3.20858]
[1736954975949,0.5,3355.0,3354.0,2.9815]
[1736954976188,0.5,3355.0,3353.2,35.0]
[1736954976189,0.8249,3355.1,3353.2,35.0]
[1736954976330,2.6e-06,3355.2,3353.2,35.0]
[1736954976331,2.98117,3354.4,3353.3,1.0375]
[1736954976535,0.8249,3354.3,3353.4,0.227]
[1736954976864,0.8249,3353.6,3353.4,0.227]
[1736954977032,2.98195,3353.5,3353.4,0.227]
[1736954977833,0.55,3353.5,3353.4,0.227]
[1736954978032,0.8249,3353.6,3353.4,0.227]
[1736954979062,0.8249,3354.2,3353.4,0.227]
[1736954979434,0.8249,3354.2,3352.9,0.8105]
[1736954979435,0.8249,3354.2,3353.3,2.9821]
[1736954979634,0.8249,3354.2,3353.4,0.227]
[1736954980050,0.8249,3354.2,3353.5,35.0]
[1736954980381,0.8249,3354.2,3353.6,0.227]
[1736954980880,0.8249,3354.2,3353.5,0.227]
[1736954980881,0.55,3354.1,3353.5,0.227]
[1736954981037,2.98149,3354.1,3353.5,0.227]
[1736954981231,2.98169,3353.8,3353.5,0.227]
[1736954981430,3.362219,3354.0,3353.3,0.228]
[1736954981644,2.98194,3353.6,3353.3,0.228]
[1736954981852,2.98171,3353.8,3353.3,0.228]
[1736954982052,0.380639,3354.0,3353.3,0.228]
[1736954982284,0.8249,3354.2,3353.3,0.228]
[1736954982493,0.8249,3354.2,3352.5,2.46744245]
[1736954982494,0.8249,3354.2,3353.4,0.228]
[1736954982694,0.8249,3354.2,3353.5,0.228]
[1736954983151,2.98163,3353.9,3353.5,0.228]
[1736954983351,2.98167,3353.9,3353.5,0.228]
[1736954984288,2.98175,3353.8,3353.5,0.228]
[1736954984594,2.98153,3354.0,3353.5,0.228]
[1736954984775,0.8249,3354.2,3353.5,0.228]
[1736954985356,0.8249,3355.1,3353.5,0.228]
[1736954985559,2.98089,3354.7,3353.7,2.98175]
[1736954985864,0.8249,3354.4,3353.0,3.79287]
[1736954986064,2.98145,3354.1,3353.1,35.228]
[1736954986268,2.98169,3353.8,3353.1,35.228]
[1736954986459,3.5313,3354.3,3353.1,0.228]
[1736954986799,2.98197,3353.5,3353.2,0.228]
[1736954987099,2.98205,3353.4,3353.2,0.228]
[1736954987295,3.80679,3353.6,3353.2,0.228]
[1736954987700,3.80679,3353.6,3352.6,0.8105]
[1736954987701,0.8249,3353.6,3352.6,0.8105]
[1736954987909,2.98212,3353.4,3352.7,0.228]
[1736954988296,3.74233532,3355.2,3352.7,0.228]
[1736954988461,3.74233532,3355.2,3353.0,2.98239]
[1736954988462,3.8064,3354.1,3353.0,2.98239]
[1736954988898,3.8064,3354.1,3352.8,38.79307]
[1736954988899,2.98161,3353.9,3352.8,38.79307]
[1736954989096,2.98192,3353.6,3352.9,0.227]
[1736954989300,2.98212,3353.4,3353.0,0.227]
[1736954990177,0.55,3354.0,3353.0,0.227]
[1736954990374,2.98178,3353.7,3353.0,0.227]
[1736954990699,1.41702332,3354.1,3353.0,0.227]
[1736954991094,2.98164,3353.9,3353.0,0.227]
[1736954991311,2.98164,3353.9,3353.1,35.34650128]
[1736954991474,2.98164,3353.9,3353.1,0.34650128]
[1736954991475,0.55,3353.6,3353.1,0.34650128]
[1736954991678,2.98222,3353.2,3353.1,0.34650128]
[1736954992360,2.98231,3353.1,3352.5,0.46744245]
[1736954992559,2.98195,3353.5,3352.4,2.9298]
[1736954992560,2.98198,3353.5,3352.4,5.13092]
[1736954992801,3.0,3353.5,3352.5,0.227]
[1736954993000,3.0,3353.5,3352.3,0.227]
[1736954993001,0.7852,3352.8,3352.3,0.227]
[1736954993205,2.98289,3352.5,3352.4,0.227]
[1736954993759,2.983,3352.4,3351.9,0.227]
[1736954994006,0.55,3352.2,3350.8,0.7936]
[1736954994181,0.55,3352.2,3350.1,2.0]
[1736954994182,0.7852,3351.5,3350.9,0.227]
[1736954994700,3.76897,3351.5,3350.9,0.227]
[1736954994903,0.7852,3351.5,3350.9,0.227]
[1736954995275,0.7852,3352.1,3351.2,0.7936]
[1736954995474,0.7852,3352.7,3351.3,0.227]
[1736954995678,0.7852,3352.7,3351.8,2.98341]
[1736954995995,2.9829,3352.5,3351.9,0.227]
[1736954996411,2.9829,3352.5,3351.2,0.7936]
[1736954996412,0.7852,3352.7,3352.0,35.0]
[1736954996713,3.76752,3353.1,3352.1,1.0206]
[1736954997006,3.76752,3353.1,3352.1,4.00379]
[1736954998010,3.76752,3353.1,3352.1,1.0206]
[1736954998011,2.98255,3352.9,3352.1,1.0206]
[1736954998206,3.76755,3353.1,3352.1,1.0206]
[1736954998391,3.76755,3353.1,3352.1,4.00377]
[1736954998597,3.76755,3353.1,3352.1,1.0206]
[1736954999178,3.76753,3353.1,3352.1,1.0206]
[1736954999379,0.7852,3353.1,3352.2,2.98309]
[1736954999794,0.7852,3353.1,3351.6,2.98364]
[1736954999996,2.98256,3352.9,3351.9,2.98334]
[1736955000199,2.98256,3352.9,3351.3,0.7936]
[1736955000200,0.55,3352.8,3351.3,0.7936]
[1736955000403,0.55,3352.5,3351.4,0.227]
[1736955000585,2.98335,3352.0,3351.4,0.227]
[1736955000771,0.7852,3352.6,3351.4,0.227]
[1736955000976,0.7852,3352.6,3351.6,2.9836]
[1736955001173,3.76796,3352.6,3351.6,2.9836]
[1736955001401,0.7852,3352.6,3351.7,2.98352]
[1736955001714,0.7852,3352.6,3351.5,0.7936]
[1736955001918,0.55,3352.5,3351.6,0.227]
[1736955002213,0.431803,3352.5,3351.7,0.227]
[1736955002418,2.984,3351.2,3350.1,2.98496]
[1736955002573,2.98429,3350.9,3350.2,0.227]
[1736955002773,2.98435,3350.9,3350.3,0.227]
[1736955003075,2.98435,3350.9,3350.1,0.7936]
[1736955003076,0.7852,3351.4,3350.1,0.7936]
[1736955003271,0.7852,3351.4,3350.5,2.98454]
[1736955003486,0.7852,3351.4,3350.2,0.227]
[1736955003487,0.7852,3351.9,3350.2,0.227]
[1736955003686,2.98375,3351.5,3350.4,3.77829]
[1736955003920,2.98419,3351.0,3350.4,0.7936]
[1736955004212,0.55,3351.5,3350.5,0.227]